fUST/lending_fUST_20240507
["ID","MTS","AMOUNT","RATE_DAILY","PERIOD"]
[326501308,1715020259622,-1000.0,0.00016986,2]
[326501309,1715020259631,-500.0,0.00016986,2]
[326501310,1715020259640,-542.02229191,0.00016986,2]
[326501311,1715020259650,-500.0,0.00016986,2]
[326501312,1715020259659,-500.0,0.00016986,2]
[326501313,1715020259668,-500.0,0.00016986,2]
[326501314,1715020259678,-500.0,0.00016986,2]
[326501315,1715020259687,-500.0,0.00016986,2]
[326501316,1715020259696,-697.98,0.00016986,2]
[326501317,1715020259705,-500.0,0.00016986,2]
[326501318,1715020259715,-1483.56,0.00016986,2]
[326501319,1715020259724,-520.91,0.00016986,2]
[326501320,1715020259733,-543.57,0.00016986,2]
[326501321,1715020259742,-500.0,0.00016986,2]
[326501322,1715020259752,-617.5528075,0.00016986,2]
[326501323,1715020259761,-500.0,0.00016986,2]
[326501324,1715020259771,-500.0,0.00016986,2]
[326501325,1715020259780,-853.82,0.00016986,2]
[326501326,1715020259789,-813.93,0.00016986,2]
[326501327,1715020259798,-500.0,0.00016986,2]
[326501328,1715020259807,-500.0,0.00016986,2]
[326501329,1715020259816,-500.0,0.00016986,2]
[326501330,1715020259826,-563.2,0.00016986,2]
[326501331,1715020259838,-500.0,0.00016986,2]
[326501332,1715020259848,-3797.3,0.00016986,2]
[326501333,1715020259858,-500.0,0.00016986,2]
[326501334,1715020259868,-500.0,0.00016986,2]
[326501335,1715020259878,-500.0,0.00016986,2]
[326501336,1715020259887,-1044.84,0.00016986,2]
[326501337,1715020259897,-1788.84,0.00016986,2]
[326501338,1715020259908,-500.0,0.00016986,2]
[326501339,1715020259917,-500.0,0.00016986,2]
[326501340,1715020259927,-500.0,0.00016986,2]
[326501341,1715020259938,-500.0,0.00016986,2]
[326501342,1715020259948,-500.0,0.00016986,2]
[326501343,1715020259957,-500.0,0.00016986,2]
[326501344,1715020259967,-500.0,0.00016986,2]
[326501345,1715020259977,-1586.38,0.00016986,2]
[326501346,1715020259986,-500.0,0.00016986,2]
[326501347,1715020259995,-3353.55,0.00016986,2]
[326501348,1715020260005,-500.0,0.00016986,2]
[326501349,1715020260014,-383.91874523,0.00016986,2]
[326501350,1715020260024,-500.0,0.00016986,2]
[326501351,1715020260034,-500.0,0.00016986,2]
[326501352,1715020260044,-500.0,0.00016986,2]
[326501353,1715020260053,-500.0,0.00016986,2]
[326501354,1715020260062,-1488.08,0.00016986,2]
[326501355,1715020260071,-850.94,0.00016986,2]
[326501356,1715020260080,-500.0,0.00016986,2]
[326501357,1715020260089,-500.0,0.00016986,2]
[326501358,1715020260099,-500.0,0.00016986,2]
[326501359,1715020260110,-500.0,0.00016986,2]
[326501360,1715020260121,-362.97050902,0.00016986,2]
[326501361,1715020333158,10000.0,0.00027,30]
[326501362,1715020357764,10000.0,0.00027,30]
[326501363,1715020425336,10000.0,0.00027,30]
[326501370,1715020686005,230.2796774,9.999e-05,2]
[326501377,1715021238697,-500.0,0.00029,120]
[326501378,1715021239146,-500.0,0.000299,120]
[326501402,1715021435053,-493.0,0.00016155,2]
[326501404,1715021435064,-150.0,0.00016155,2]
[326501405,1715021435074,-230.2796774,0.00016334,2]
[326501407,1715021435083,-3720.43084909,0.00016335,2]
[326501409,1715021435093,-158.50261399,0.00016336,2]
[326501411,1715021435103,-1000.0,0.00016337,2]
[326501413,1715021435112,-6.6841892,0.00016338,2]
[326501414,1715021435124,-736.13645128,0.00016338,2]
[326501415,1715021435134,-1041.97208394,0.00016436,2]
[326501416,1715021435144,-240.14730736,0.00016436,2]
[326501417,1715021435154,-379.5668552,0.00016436,2]
[326501418,1715021435165,-1226.90933641,0.00016436,2]
[326501419,1715021435177,-475.53679444,0.00016436,2]
[326501420,1715021435187,-309.5202444,0.00016436,2]
[326501421,1715021435200,-412.46510919,0.00016436,2]
[326501422,1715021435211,-1103.68235674,0.00016436,2]
[326501423,1715021435221,-731.19073412,0.00016436,2]
[326501424,1715021435232,-158.07345455,0.00016437,2]
[326501425,1715021435243,-3937.0,0.00016437,2]
[326501426,1715021435252,-1000.0,0.00016437,2]
[326501427,1715021435262,-500.0,0.00016438,2]
[326501428,1715021435272,-500.0,0.00016438,2]
[326501429,1715021435284,-500.0,0.00016438,2]
[326501430,1715021435294,-500.0,0.00016438,2]
[326501431,1715021435303,-590.398787,0.00016438,2]
[326501432,1715021435313,-518.85413994,0.00016438,2]
[326501433,1715021435323,-500.0,0.00016438,2]
[326501434,1715021435332,-500.0,0.00016438,2]
[326501435,1715021435342,-500.0,0.00016438,2]
[326501436,1715021435351,-500.0,0.00016438,2]
[326501437,1715021435361,-624.85,0.00016438,2]
[326501438,1715021435370,-500.0,0.00016438,2]
[326501439,1715021435380,-500.0,0.00016438,2]
[326501440,1715021435390,-500.0,0.00016438,2]
[326501441,1715021435399,-500.0,0.00016438,2]
[326501442,1715021435409,-914.24,0.00016438,2]
[326501443,1715021435420,-500.0,0.00016438,2]
[326501444,1715021435430,-500.0,0.00016438,2]
[326501445,1715021435439,-500.0,0.00016438,2]
[326501446,1715021435449,-500.0,0.00016438,2]
[326501447,1715021435459,-521.49441262,0.00016438,2]
[326501448,1715021435469,-500.0,0.00016438,2]
[326501449,1715021435479,-500.0,0.00016438,2]
[326501450,1715021435489,-500.0,0.00016438,2]
[326501451,1715021435498,-500.0,0.00016438,2]
[326501452,1715021435508,-560.23445337,0.00016438,2]
[326501453,1715021435520,-500.0,0.00016438,2]
[326501454,1715021435530,-500.0,0.00016438,2]
[326501455,1715021435539,-500.0,0.00016438,2]
[326501456,1715021435549,-500.0,0.00016438,2]
[326501457,1715021435559,-500.0,0.00016438,2]
[326501458,1715021435568,-500.0,0.00016438,2]
[326501459,1715021435578,-500.0,0.00016438,2]
[326501460,1715021435588,-500.0,0.00016438,2]
[326501461,1715021435598,-500.0,0.00016438,2]
[326501462,1715021435608,-500.0,0.00016438,2]
[326501463,1715021435617,-500.0,0.00016438,2]
[326501464,1715021435627,-500.0,0.00016438,2]
[326501465,1715021435636,-500.0,0.00016438,2]
[326501466,1715021435646,-500.0,0.00016438,2]
[326501467,1715021435656,-500.0,0.00016438,2]
[326501468,1715021435666,-500.0,0.00016438,2]
[326501469,1715021435676,-500.0,0.00016438,2]
[326501470,1715021435686,-500.0,0.00016438,2]
[326501471,1715021435696,-500.0,0.00016438,2]
[326501472,1715021435706,-500.0,0.00016438,2]
[326501473,1715021435716,-500.0,0.00016438,2]
[326501474,1715021435726,-500.0,0.00016438,2]
[326501475,1715021435736,-3322.64,0.00016438,2]
[326501476,1715021435745,-500.0,0.00016438,2]
[326501477,1715021435755,-500.0,0.00016438,2]
[326501478,1715021435765,-636.99,0.00016438,2]
[326501479,1715021435775,-1388.08,0.00016438,2]
[326501480,1715021435786,-1565.24,0.00016438,2]
[326501481,1715021435795,-500.0,0.00016438,2]
[326501482,1715021435806,-500.0,0.00016438,2]
[326501483,1715021435816,-500.0,0.00016438,2]
[326501484,1715021435826,-500.0,0.00016438,2]
[326501485,1715021435836,-1064.14,0.00016438,2]
[326501486,1715021435845,-992.26,0.00016438,2]
[326501487,1715021435855,-500.0,0.00016438,2]
[326501488,1715021435864,-522.11092335,0.00016438,2]
[326501489,1715021435874,-500.0,0.00016438,2]
[326501490,1715021435884,-587.31,0.00016438,2]
[326501491,1715021435894,-1240.11,0.00016438,2]
[326501492,1715021435904,-500.0,0.00016438,2]
[326501493,1715021435915,-500.0,0.00016438,2]
[326501494,1715021435925,-500.0,0.00016438,2]
[326501495,1715021435934,-500.0,0.00016438,2]
[326501496,1715021435944,-1298.34,0.00016438,2]
[326501497,1715021435954,-500.0,0.00016438,2]
[326501498,1715021435963,-712.19,0.00016438,2]
[326501499,1715021435973,-500.0,0.00016438,2]
[326501500,1715021435983,-500.0,0.00016438,2]
[326501501,1715021435993,-740.0,0.00016438,2]
[326501502,1715021436003,-562.4596636,0.00016438,2]
[326501503,1715021436013,-500.0,0.00016438,2]
[326501504,1715021436023,-500.0,0.00016438,2]
[326501505,1715021436032,-500.0,0.00016438,2]
[326501506,1715021436042,-500.0,0.00016438,2]
[326501507,1715021436052,-500.0,0.00016438,2]
[326501508,1715021436061,-500.0,0.00016438,2]
[326501509,1715021436071,-744.57,0.00016438,2]
[326501510,1715021436081,-2082.06,0.00016438,2]
[326501511,1715021436092,-591.49,0.00016438,2]
[326501512,1715021436101,-500.0,0.00016438,2]
[326501513,1715021436111,-810.91,0.00016438,2]
[326501514,1715021436121,-500.0,0.00016438,2]
[326501515,1715021436131,-646.33,0.00016438,2]
[326501516,1715021436142,-342.19126684,0.00016438,2]
[326501517,1715021436159,-135.85282145,0.00016438,2]
[326501518,1715021436168,-2934.36,0.00016438,2]
[326501519,1715021436178,-500.0,0.00016438,2]
[326501520,1715021436187,-504.9914681,0.00016438,2]
[326501521,1715021436200,-500.0,0.00016438,2]
[326501522,1715021436211,-1302.07,0.00016438,2]
[326501523,1715021436220,-500.0,0.00016438,2]
[326501524,1715021436230,-1022.92,0.00016438,2]
[326501525,1715021436243,-2195.35428224,0.00016438,2]
[326501595,1715021439230,-282.1959,0.00016438,2]
[326501647,1715022227439,240.23693063,9.999e-05,2]
[326501648,1715022272331,19313.01528045,9.999e-05,2]
[326501650,1715022564892,-194.06678592,0.000136,2]
[326501669,1715022633048,-1182.61484399,0.00015361,2]
[326501671,1715022633064,-6848.95243751,0.00015361,2]
[326501673,1715022633075,-768.799106,0.00015382,2]
[326501675,1715022633087,-322.694398,0.0001589,2]
[326501677,1715022633098,-374.419952,0.0001589,2]
[326501679,1715022633109,-493.0,0.00016155,2]
[326501681,1715022633120,-150.0,0.00016155,2]
[326501684,1715022633131,-153.0,0.000162,2]
[326501686,1715022633142,-2267.03940564,0.00016338,2]
[326501688,1715022633153,-198.69239082,0.00016338,2]
[326501690,1715022633164,-306.0,0.000164,2]
[326501692,1715022633176,-153.0,0.00016411,2]
[326501694,1715022633188,-388.61418575,0.00016435,2]
[326501697,1715022633202,-839.11375686,0.00016435,2]
[326501699,1715022633216,-4112.83701998,0.00016435,2]
[326501701,1715022633227,-783.06873209,0.00016436,2]
[326501702,1715022633238,-1334.73850825,0.00016436,2]
[326501703,1715022633250,-2149.6062962,0.00016436,2]
[326501704,1715022633261,-154.96928135,0.00016436,2]
[326501705,1715022633273,-890.802326,0.00016436,2]
[326501706,1715022633284,-235.38391635,0.00016436,2]
[326501707,1715022633296,-240.05768409,0.00016436,2]
[326501708,1715022633307,-154.82981083,0.00016436,2]
[326501709,1715022633319,-2628.34812708,0.00016437,2]
[326501710,1715022633331,-985.40719243,0.00016438,2]
[326501711,1715022633343,-500.0,0.00016438,2]
[326501712,1715022633354,-500.0,0.00016438,2]
[326501713,1715022633365,-500.0,0.00016438,2]
[326501714,1715022633377,-525.81371058,0.00016438,2]
[326501715,1715022633388,-500.0,0.00016438,2]
[326501716,1715022633399,-500.0,0.00016438,2]
[326501717,1715022633410,-500.0,0.00016438,2]
[326501718,1715022633421,-633.41,0.00016438,2]
[326501719,1715022633433,-500.0,0.00016438,2]
[326501720,1715022633444,-950.92,0.00016438,2]
[326501721,1715022633456,-736.38,0.00016438,2]
[326501722,1715022633467,-500.0,0.00016438,2]
[326501723,1715022633479,-500.0,0.00016438,2]
[326501724,1715022633490,-500.0,0.00016438,2]
[326501725,1715022633501,-500.0,0.00016438,2]
[326501726,1715022633513,-200.85840953,0.00016438,2]
[326501727,1715022633524,-500.0,0.00016438,2]
[326501728,1715022633536,-1244.24,0.00016438,2]
[326501729,1715022633548,-590.82,0.00016438,2]
[326501730,1715022633563,-1883.65,0.00016438,2]
[326501731,1715022633574,-500.0,0.00016438,2]
[326501732,1715022633585,-500.0,0.00016438,2]
[326501733,1715022633597,-275.11306196,0.00016438,2]
[326501734,1715022633609,-500.0,0.00016438,2]
[326501735,1715022633620,-500.0,0.00016438,2]
[326501736,1715022633632,-500.0,0.00016438,2]
[326501737,1715022633643,-503.81461723,0.00016438,2]
[326501738,1715022633655,-500.0,0.00016438,2]
[326501739,1715022633667,-709.16,0.00016438,2]
[326501740,1715022633678,-566.84,0.00016438,2]
[326501741,1715022633690,-500.0,0.00016438,2]
[326501742,1715022633701,-500.0,0.00016438,2]
[326501743,1715022633713,-500.0,0.00016438,2]
[326501744,1715022633724,-500.0,0.00016438,2]
[326501745,1715022633736,-500.0,0.00016438,2]
[326501746,1715022633747,-3184.19,0.00016438,2]
[326501747,1715022633759,-500.0,0.00016438,2]
[326501748,1715022633770,-500.0,0.00016438,2]
[326501749,1715022633782,-500.0,0.00016438,2]
[326501750,1715022633793,-980.3,0.00016438,2]
[326501751,1715022633805,-667.27,0.00016438,2]
[326501752,1715022633816,-392.28124976,0.00016438,2]
[326501753,1715022633828,-500.0,0.00016438,2]
[326501754,1715022633839,-500.0,0.00016438,2]
[326501755,1715022633851,-500.0,0.00016438,2]
[326501756,1715022633862,-1500.02,0.00016438,2]
[326501757,1715022633873,-623.48,0.00016438,2]
[326501758,1715022633886,-500.0,0.00016438,2]
[326501759,1715022633898,-500.0,0.00016438,2]
[326501760,1715022633909,-500.0,0.00016438,2]
[326501761,1715022633920,-694.18,0.00016438,2]
[326501762,1715022633932,-500.0,0.00016438,2]
[326501763,1715022633943,-214.05636568,0.00016438,2]
[326501764,1715022633955,-500.0,0.00016438,2]
[326501765,1715022633967,-610.45,0.00016438,2]
[326501766,1715022633978,-500.0,0.00016438,2]
[326501767,1715022633989,-500.0,0.00016438,2]
[326501768,1715022634002,-1330.25,0.00016438,2]
[326501769,1715022634013,-500.0,0.00016438,2]
[326501770,1715022634024,-500.0,0.00016438,2]
[326501771,1715022634036,-500.0,0.00016438,2]
[326501772,1715022634051,-500.0,0.00016438,2]
[326501773,1715022634062,-532.35948568,0.00016438,2]
[326501774,1715022634073,-713.55,0.00016438,2]
[326501775,1715022634084,-1298.11,0.00016438,2]
[326501776,1715022634095,-777.12,0.00016438,2]
[326501777,1715022634105,-747.09,0.00016438,2]
[326501778,1715022634115,-500.0,0.00016438,2]
[326501779,1715022634125,-500.0,0.00016438,2]
[326501780,1715022634137,-682.52,0.00016438,2]
[326501781,1715022634147,-500.0,0.00016438,2]
[326501782,1715022634157,-500.0,0.00016438,2]
[326501783,1715022634376,-500.0,0.00016438,2]
[326501784,1715022634392,-461.48479425,0.00016438,2]
[326501785,1715022634402,-1019.8,0.00016438,2]
[326501786,1715022634412,-500.0,0.00016438,2]
[326501787,1715022634421,-500.0,0.00016438,2]
[326501788,1715022634431,-500.0,0.00016438,2]
[326501789,1715022634441,-500.0,0.00016438,2]
[326501790,1715022634451,-500.0,0.00016438,2]
[326501791,1715022634461,-388.11863025,0.00016438,2]
[326501792,1715022634471,-184.77112715,0.00016438,2]
[326501793,1715022634480,-500.0,0.00016438,2]
[326501794,1715022634490,-500.0,0.00016438,2]
[326501795,1715022634499,-500.0,0.00016438,2]
[326501796,1715022634509,-500.0,0.00016438,2]
[326501797,1715022634519,-1188.44,0.00016438,2]
[326501798,1715022634528,-500.0,0.00016438,2]
[326501799,1715022634538,-500.0,0.00016438,2]
[326501800,1715022634559,-2812.09,0.00016438,2]
[326501801,1715022634577,-500.0,0.00016438,2]
[326501802,1715022634587,-500.0,0.00016438,2]
[326501803,1715022634596,-524.50241068,0.00016438,2]
[326501804,1715022634609,-1097.2,0.00016438,2]
[326501805,1715022634620,-1247.82,0.00016438,2]
[326501806,1715022634630,-500.0,0.00016438,2]
[326501807,1715022634640,-500.0,0.00016438,2]
[326501808,1715022634650,-500.0,0.00016438,2]
[326501809,1715022634660,-500.0,0.00016438,2]
[326501810,1715022634670,-500.0,0.00016438,2]
[326501811,1715022634680,-500.0,0.00016438,2]
[326501812,1715022634690,-2386.59,0.00016438,2]
[326501813,1715022634699,-1446.55,0.00016438,2]
[326501814,1715022634709,-737.83,0.00016438,2]
[326501815,1715022634719,-500.0,0.00016438,2]
[326501816,1715022634728,-500.0,0.00016438,2]
[326501817,1715022634738,-498.19305933,0.00016438,2]
[326501818,1715022634747,-538.8,0.00016438,2]
[326501819,1715022634757,-565.95946865,0.00016438,2]
[326501820,1715022634767,-500.0,0.00016438,2]
[326501821,1715022634777,-500.0,0.00016438,2]
[326501822,1715022634786,-500.0,0.00016438,2]
[326501823,1715022634796,-500.0,0.00016438,2]
[326501824,1715022634806,-500.0,0.00016438,2]
[326501825,1715022634816,-955.59,0.00016438,2]
[326501826,1715022634825,-216.03052269,0.00016438,2]
[326501872,1715022646219,-2844.5983637,0.00016438,2]
[326501877,1715022646230,-5161.98182993,0.00016438,2]
[326501929,1715022646694,-1427.47848228,0.00016438,2]
[326501932,1715022646706,-464.78866184,0.00016438,2]
[326501953,1715022647324,-7282.69922707,0.00016438,2]
[326501955,1715022647334,-1779.26947731,0.00016438,2]
[326501957,1715022647343,-500.0,0.00016438,2]
[326501959,1715022647352,-500.0,0.00016438,2]
[326501961,1715022647361,-500.0,0.00016438,2]
[326501963,1715022647371,-500.0,0.00016438,2]
[326501965,1715022647380,-9582.6,0.00016438,2]
[326501966,1715022647389,-500.0,0.00016438,2]
[326501967,1715022647399,-6939.78,0.00016438,2]
[326501968,1715022647408,-610.73,0.00016438,2]
[326501969,1715022647417,-500.0,0.00016438,2]
[326501970,1715022647426,-500.0,0.00016438,2]
[326501971,1715022647436,-748.67,0.00016438,2]
[326501972,1715022647446,-356.2838749,0.00016438,2]
[326501973,1715022647457,-2023.57,0.00016438,2]
[326501974,1715022647467,-618.86,0.00016438,2]
[326501975,1715022647478,-500.0,0.00016438,2]
[326501976,1715022647487,-500.0,0.00016438,2]
[326501977,1715022647496,-500.0,0.00016438,2]
[326501978,1715022647506,-500.0,0.00016438,2]
[326501979,1715022647515,-500.0,0.00016438,2]
[326501980,1715022647525,-876.14,0.00016438,2]
[326501981,1715022647534,-500.0,0.00016438,2]
[326501982,1715022647543,-500.0,0.00016438,2]
[326501983,1715022647554,-2735.68,0.00016438,2]
[326501984,1715022647568,-500.0,0.00016438,2]
[326501985,1715022647577,-726.04,0.00016438,2]
[326501986,1715022647585,-500.0,0.00016438,2]
[326501987,1715022647594,-9274.51,0.00016438,2]
[326501988,1715022647604,-5949.77,0.00016438,2]
[326501989,1715022647614,-500.0,0.00016438,2]
[326501990,1715022647625,-4597.2,0.00016438,2]
[326501991,1715022647635,-1302.35,0.00016438,2]
[326501992,1715022647645,-630.52378929,0.00016438,2]
[326501993,1715022647655,-500.0,0.00016438,2]
[326501994,1715022647664,-500.0,0.00016438,2]
[326501995,1715022647673,-598.81,0.00016438,2]
[326501996,1715022647683,-552.07,0.00016438,2]
[326501997,1715022647692,-500.0,0.00016438,2]
[326501998,1715022647702,-2476.99,0.00016438,2]
[326501999,1715022647711,-770.29,0.00016438,2]
[326502000,1715022647721,-500.0,0.00016438,2]
[326502001,1715022647731,-500.0,0.00016438,2]
[326502002,1715022647740,-500.0,0.00016438,2]
[326502003,1715022647771,-500.0,0.00016438,2]
[326502004,1715022647780,-590.69,0.00016438,2]
[326502005,1715022647790,-662.5286024,0.00016438,2]
[326502006,1715022647938,-18.3713976,0.00016438,2]
[326502007,1715022647947,-293.88416533,0.00016438,2]
[326502008,1715022647960,-577.90583467,0.00016438,2]
[326502009,1715022647969,-500.0,0.00016438,2]
[326502010,1715022647979,-500.0,0.00016438,2]
[326502011,1715022647988,-500.0,0.00016438,2]
[326502012,1715022647998,-500.0,0.00016438,2]
[326502013,1715022648007,-176.44169972,0.00016438,2]
[326502014,1715022648019,-335.36860417,0.00016438,2]
[326502025,1715023272629,500.0,0.00025116,30]
[326502026,1715023274346,500.0,0.00025116,30]
[326502027,1715023275486,500.0,0.00025116,30]
[326502028,1715023276578,430.47075497,0.00025116,30]
[326502032,1715023482605,-960.998882,0.00015268,2]
[326502033,1715023482956,-39.001118,0.00015417,2]
[326502034,1715023508896,-2000.0,0.00015417,2]
[326502035,1715023617341,-837.56946081,0.00015417,2]
[326502082,1715023835556,-1491.96504582,0.00015292,2]
[326502083,1715023835569,-6494.77861952,0.00015292,2]
[326502086,1715023835581,-14026.68575576,0.00015292,2]
[326502088,1715023835594,-480.499441,0.00015292,2]
[326502090,1715023835604,-2086.15678154,0.00015417,2]
[326502092,1715023835614,-547.44844024,0.00015417,2]
[326502094,1715023835624,-281.05268358,0.00015417,2]
[326502096,1715023835634,-1496.57626141,0.00015417,2]
[326502098,1715023835644,-154.78330338,0.00015417,2]
[326502100,1715023835655,-154.78330338,0.00015417,2]
[326502101,1715023835665,-547.44844024,0.00015417,2]
[326502103,1715023835675,-1105.76117145,0.00015417,2]
[326502105,1715023835684,-165.9141139,0.00015614,2]
[326502107,1715023835694,-3157.91773935,0.00016338,2]
[326502109,1715023835703,-150.0,0.00016345,2]
[326502111,1715023835714,-1031.63408845,0.00016436,2]
[326502113,1715023835724,-309.45845466,0.00016436,2]
[326502115,1715023835734,-818.5701543,0.00016436,2]
[326502117,1715023835743,-1379.51370547,0.00016436,2]
[326502119,1715023835753,-240.14730736,0.00016437,2]
[326502121,1715023835765,-1695.99107954,0.00016437,2]
[326502123,1715023835774,-679.61,0.00016438,2]
[326502125,1715023835784,-524.03,0.00016438,2]
[326502127,1715023835794,-208.72073891,0.00016438,2]
[326502129,1715023835803,-500.0,0.00016438,2]
[326502131,1715023835813,-500.0,0.00016438,2]
[326502133,1715023835823,-500.0,0.00016438,2]
[326502135,1715023835832,-500.0,0.00016438,2]
[326502137,1715023835842,-665.26,0.00016438,2]
[326502140,1715023835852,-500.0,0.00016438,2]
[326502142,1715023835862,-500.0,0.00016438,2]
[326502144,1715023835872,-500.0,0.00016438,2]
[326502146,1715023835882,-500.0,0.00016438,2]
[326502148,1715023835892,-239.98774758,0.00016438,2]
[326502152,1715023835935,-260.01225242,0.00016438,2]
[326502154,1715023835946,-500.0,0.00016438,2]
[326502156,1715023835956,-585.28,0.00016438,2]
[326502159,1715023835966,-500.0,0.00016438,2]
[326502161,1715023835976,-500.0,0.00016438,2]
[326502163,1715023835987,-500.0,0.00016438,2]
[326502165,1715023835996,-500.0,0.00016438,2]
[326502167,1715023836006,-500.0,0.00016438,2]
[326502169,1715023836017,-500.0,0.00016438,2]
[326502171,1715023836038,-314.1522273,0.00016438,2]
[326502173,1715023836050,-500.0,0.00016438,2]
[326502175,1715023836061,-500.0,0.00016438,2]
[326502176,1715023836082,-196.40954854,0.00016438,2]
[326502178,1715023836131,-303.59045146,0.00016438,2]
[326502180,1715023836141,-500.0,0.00016438,2]
[326502182,1715023836152,-500.0,0.00016438,2]
[326502184,1715023836164,-500.0,0.00016438,2]
[326502186,1715023836174,-500.0,0.00016438,2]
[326502188,1715023836184,-500.0,0.00016438,2]
[326502190,1715023836194,-500.0,0.00016438,2]
[326502192,1715023836204,-705.7,0.00016438,2]
[326502194,1715023836214,-500.0,0.00016438,2]
[326502196,1715023836224,-500.0,0.00016438,2]
[326502198,1715023836234,-500.0,0.00016438,2]
[326502200,1715023836244,-839.64,0.00016438,2]
[326502202,1715023836253,-500.0,0.00016438,2]
[326502204,1715023836263,-500.0,0.00016438,2]
[326502206,1715023836273,-500.0,0.00016438,2]
[326502208,1715023836283,-500.0,0.00016438,2]
[326502210,1715023836293,-1437.52,0.00016438,2]
[326502212,1715023836304,-500.0,0.00016438,2]
[326502214,1715023836314,-500.0,0.00016438,2]
[326502215,1715023836325,-500.0,0.00016438,2]
[326502217,1715023836336,-597.5,0.00016438,2]
[326502219,1715023836351,-500.0,0.00016438,2]
[326502221,1715023836361,-500.0,0.00016438,2]
[326502223,1715023836372,-573.86,0.00016438,2]
[326502225,1715023836381,-500.0,0.00016438,2]
[326502226,1715023836392,-500.0,0.00016438,2]
[326502228,1715023836402,-500.0,0.00016438,2]
[326502230,1715023836412,-500.0,0.00016438,2]
[326502232,1715023836422,-585.01,0.00016438,2]
[326502234,1715023836432,-500.0,0.00016438,2]
[326502236,1715023836442,-500.0,0.00016438,2]
[326502238,1715023836453,-1274.82,0.00016438,2]
[326502241,1715023836464,-500.0,0.00016438,2]
[326502242,1715023836474,-500.0,0.00016438,2]
[326502245,1715023836485,-500.0,0.00016438,2]
[326502247,1715023836495,-500.0,0.00016438,2]
[326502249,1715023836539,-500.0,0.00016438,2]
[326502250,1715023836570,-500.0,0.00016438,2]
[326502252,1715023836581,-1244.03,0.00016438,2]
[326502254,1715023836591,-2287.15,0.00016438,2]
[326502256,1715023836602,-500.0,0.00016438,2]
[326502258,1715023836613,-500.0,0.00016438,2]
[326502260,1715023836622,-500.0,0.00016438,2]
[326502262,1715023836632,-715.97,0.00016438,2]
[326502264,1715023836642,-500.0,0.00016438,2]
[326502265,1715023836651,-500.0,0.00016438,2]
[326502268,1715023836662,-500.0,0.00016438,2]
[326502269,1715023836672,-500.0,0.00016438,2]
[326502272,1715023836682,-654.08,0.00016438,2]
[326502273,1715023836692,-683.82,0.00016438,2]
[326502275,1715023836702,-500.0,0.00016438,2]
[326502278,1715023836712,-9183.32,0.00016438,2]
[326502280,1715023836722,-500.0,0.00016438,2]
[326502282,1715023836732,-500.0,0.00016438,2]
[326502284,1715023836743,-500.0,0.00016438,2]
[326502285,1715023836753,-744.74,0.00016438,2]
[326502287,1715023836764,-500.0,0.00016438,2]
[326502289,1715023836775,-977.31,0.00016438,2]
[326502291,1715023836785,-500.0,0.00016438,2]
[326502293,1715023836795,-500.0,0.00016438,2]
[326502295,1715023836806,-500.0,0.00016438,2]
[326502297,1715023836816,-500.0,0.00016438,2]